Cogmind - Beta 12 @@@ ROGUE MODE // 2024.02.24 @ 17:24:22 Player: VenomBot Result: Destroyed by as-89445 with Assembled Maul Performance ------------- Evolutions (0) 0 Regions Visited (0) 0 Robots Destroyed (1) 5 Value Destroyed (53) 53 Prototype IDs (0) 0 Alien Tech Used (0) 0 Bonus (0) 0 TOTAL SCORE: 58 Bonus ------- None Cogmind --------- Core Integrity 0/250 Matter 119/300 Energy 78/100 System Corruption 0% Temperature Cool (2) Movement Walking (120) Location -11/Junkyard Parts ------- > --- POWER (1) -------- (None) > --- PROPULSION (2) --- Aluminum Leg Aluminum Leg > --- UTILITY (2) ------ Small Storage Unit > --- WEAPON (2) ------- (None) > --- INVENTORY (8) ---- (None) Peak State ------------ > --- POWER ------------ Light Ion Engine > --- PROPULSION ------- Light Treads Light Treads > --- UTILITY ---------- Small Storage Unit > --- WEAPON ----------- EM Pulse Gun Light Assault Rifle > --- INVENTORY -------- Light Ion Engine Wheel EM Pulse Gun [Rating: 6] Favorites ----------- Power Light Ion Engine Engine Light Ion Engine Propulsion Light Treads Treads Light Treads Leg Aluminum Leg Utility Small Storage Unit Storage Small Storage Unit Weapon Light Assault Rifle Energy Gun EM Pulse Gun Ballistic Gun Light Assault Rifle Build | -11 ------- Run | Jun Slots Evolved . | . Power . | . Propulsion . | . Utility . | . Weapon . | . Parts Attached 10 | 10 Power 2 | 2 Engine 2 | 2 Core . | . Reactor . | . Propulsion 4 | 4 Treads 2 | 2 Leg 2 | 2 Wheel . | . Hover . | . Flight . | . Utility 1 | 1 Device . | . Storage 1 | 1 Processor . | . Hackware . | . Protection . | . Artifact . | . Weapon 3 | 3 Energy Gun 2 | 2 Energy Cannon . | . Ballistic Gun 1 | 1 Ballistic Cannon . | . Launcher . | . Special Weapon . | . Impact Weapon . | . Slashing Weapon . | . Piercing Weapon . | . Special Melee Weapon . | . Unidentified Prototypes . | . Parts Lost 7 | 7 Power 2 | 2 Propulsion 2 | 2 Utility . | . Weapon 3 | 3 Highest Loss Streak 7 | 7 To Critical Strikes . | . Average Slot Usage (%) . | . Naked Turns . | . Heaviest Build 11 | 11 Greatest Support 40 | 40 Greatest Overweight (x) . | . Average Overweight (x) . | . Largest Inventory Capacity 8 | 8 Average Capacity 7 | 7 Most Carried 5 | 5 Average Carried 3 | 3 Final Capacity 8 | 8 Final Carried . | . Class Distribution -------------------- None Dominant Class ---------------- None Resources | -11 ----------- Run | Jun Matter Collected 86 | 86 Remotely . | . Salvage Created . | . Parts . | . Haulers Intercepted . | . Recyclers Shooed . | . Parts Field Recycled . | . Retrieved Matter . | . Parts Self-Destructed . | . Prevented . | . Kills | -11 ------- Run | Jun Combat Hostiles Destroyed 1 | 1 AOE 1 | 1 Classes Destroyed 1 | 1 Demolisher 1 | 1 Best Kill Streak 1 | 1 Combat Bots Only 1 | 1 Max Kills in Single Turn 1 | 1 Gunslinging . | . Exploded 1 | 1 Melee . | . Uniques/NPCs Destroyed . | . Combat | -11 -------- Run | Jun Damage Taken 949 | 949 Core 261 | 261 Absorbed by Shields . | . Core Remaining (%) . | . Volleys Fired 10 | 10 Largest 2 | 2 Hottest 60 | 60 Shots Fired 16 | 16 Gun 16 | 16 Cannon . | . Launcher . | . Special . | . Kinetic 7 | 7 Thermal . | . Explosive . | . Electromagnetic 9 | 9 Robot Hit Streak 4 | 4 Robot Miss Streak 3 | 3 Penetration Max . | . Secondary Targets . | . Shots Hit Robots 10 | 10 Core Hits 5 | 5 Critical Kills . | . Critical Parts Destroyed . | . Critical Strikes . | . Melee Attacks . | . Impact . | . Slashing . | . Piercing . | . Sneak Attacks . | . Combat Hostiles . | . Follow-up Attacks . | . Damage Inflicted 220 | 220 Guns 112 | 112 Cannons . | . Explosions 108 | 108 Melee . | . Ramming . | . Kinetic 44 | 44 Thermal 108 | 108 Explosive . | . Electromagnetic 68 | 68 Impact . | . Slashing . | . Piercing . | . Highest Corruption . | . Average Corruption . | . Corruption Purged . | . Corruption Blocked . | . Overload Shots . | . Overflow Damage . | . Projectiles . | . Explosions . | . Melee . | . Knockbacks . | . Impact . | . Kinetic . | . Secondary . | . Self-Inflicted Damage . | . Shots . | . Rammed 1 | 1 Targets Rammed 1 | 1 Kicked . | . Crushed . | . Highest Temperature 40 | 40 Average Temperature 19 | 19 Received Heat Transfer 40 | 40 Siege Activations . | . Robots Corrupted . | . Combat Hostiles . | . Parts Fried . | . Impact Corruptions . | . Robots Melted . | . Combat Hostiles . | . Parts Melted . | . Heat Transferred 150 | 150 Parts Sabotaged . | . Parts Stolen . | . Parts Stripped . | . Power Chain Reactions 2 | 2 Missiles Intercepted . | . Alert | -11 ------- Run | Jun Peak Influence 20 | 20 Initial . | . Average . | . Maximum Alert Level . | . Low Security (%) 100 | 100 Level 1 . | . Level 2 . | . Level 3 . | . Level 4 . | . Level 5 . | . High Security . | . Max Security . | . Squads Dispatched . | . Investigation . | . Extermination . | . Reinforcement . | . Assault . | . Garrison . | . Intercept . | . Searches Triggered . | . Construction Impeded . | . Haulers Reinforced . | . Active Scanning Responses . | . Cargo Convoy Interrupts . | . Stealth | -11 --------- Run | Jun Distress Signals . | . Communications Jammed . | . Distress Signals . | . Times Spotted 21 | 21 Peak Tracking Total 18 | 18 Tactical Retreats . | . Traps | -11 ------- Run | Jun Traps Triggered . | . Indirectly . | . Trap Hack Attempts . | . Triggered . | . Disarmed . | . Reprogrammed . | . Reused . | . Traps Extracted . | . Installed . | . Triggered . | . Machines | -11 ---------- Run | Jun Machines Disabled . | . Max in Single Turn . | . Machines Repaired . | . Machines Sabotaged . | . Overloaded Fab Kills . | . Hacking | -11 --------- Run | Jun Machines Accessed . | . Terminals . | . Fabricators . | . Repair Stations . | . Recycling Units . | . Scanalyzers . | . Garrison Access . | . Total Hacks . | . Successful . | . Failed . | . Catastrophic . | . Database Lockouts . | . Manual . | . Terminals . | . Fabricators . | . Repair Stations . | . Recycling Units . | . Scanalyzers . | . Garrison Access . | . Terminal Hacks . | . Fabricator Hacks . | . Repair Station Hacks . | . Recycling Unit Hacks . | . Scanalyzer . | . Garrison Access Hacks . | . Unauthorized Hacks . | . Terminals . | . Fabricators . | . Repair Stations . | . Recycling Units . | . Scanalyzers . | . Garrison Access . | . Data Cores Recovered . | . Used . | . Hacking Detections . | . Full Trace Events . | . Feedback Events . | . Feedback Blocked . | . Robot Schematics Acquired . | . Robots Built . | . Authchips . | . Time . | . Total Robot Build Rating . | . Part Schematics Acquired . | . Parts Built . | . Authchips . | . Time . | . Total Part Build Rating . | . Parts Repaired . | . Time . | . Parts Recycled . | . Recycled Matter . | . Retrieved Matter . | . Retrieved Components . | . Parts Scanalyzed . | . Part Schematics Acquired . | . Parts Damaged . | . Bothacking | -11 ------------ Run | Jun Used RIF Installer . | . Robots Hacked . | . Non-combat . | . Combat . | . Robot Hacks Applied . | . Relay Couplers Released . | . Fabnet Peak Effective % . | . Robots Rewired . | . Allies Hacked . | . Hacks Repelled . | . Allies | -11 -------- Run | Jun Total Allies . | . Largest Group . | . Highest-Rated Group . | . Highest-Rated Ally . | . Total Orders . | . Ally Attacks . | . Total Damage . | . Kills . | . Allies Corrupted . | . Allies Melted . | . Intel | -11 ------- Run | Jun Robot Analysis Total . | . Derelict Logs Recovered . | . Drone Launches . | . Drone Recoveries . | . Exploration | -11 ------------- Run | Jun Turns Passed 2990 | 2990 Spaces Moved 634 | 634 Core 22 | 22 Treads 603 | 603 Legs 9 | 9 Wheels . | . Hover . | . Flight . | . Fastest Speed 50 | 50 Average Speed 155 | 155 Slowest Speed 160 | 160 Overloaded Moves . | . Propulsion Burnouts . | . Robots Hopped . | . Cave-ins Triggered . | . Exploration Rate (%) 69 | 69 Regions Visited . Branch Regions . Pre-discovered Areas . | . Known Exits Taken . | . Unknown Exits Taken . | . Scrap Searched . | . Spaces Dug . | . Terrain Destroyed . | . Melee . | . Projectile . | . AOE . | . Terrain Rammed . | . Walls Destroyed . | . Machines Disabled . | . Actions | -11 --------- Run | Jun Total 2623 | 2623 Wait 1956 | 1956 Move 634 | 634 Hop . | . Pick Up 11 | 11 Fast Attach . | . Attach 10 | 10 Detach . | . Swap . | . Drop 1 | 1 Fire 10 | 10 Melee . | . Ram . | . Kick . | . Crush 1 | 1 Escape Stasis . | . Rewire . | . Trap . | . Miscellaneous . | . Route ------- -11/Junkyard (discovered 1 exit: [*Mat]) History --------- Turn | Location | Event 19 | -11/Junkyard | Discovered new exit (range 15) 2929 | -11/Junkyard | Assembled infested the area 2967 | -11/Junkyard | Core integrity fell below 50% 2980 | -11/Junkyard | Core integrity fell below 20% 2991 | -11/Junkyard | Destroyed by as-89445 with Assembled Maul Last Messages --------------- 02958_ The unstable cave ceiling collapses. 02958_ as-89154 destroyed. 02960_ as-16935 destroyed. 02963_ as-42724 destroyed. 02964_ as-95635 destroyed. 02964_ as-23942 destroyed. 02964_ Lgt. Treads destroyed. 02965_ The unstable cave ceiling collapses. 02967_ Chain reaction triggered in Lgt. Deuterium Engine. 02967_ D-53 Grenadier destroyed. 02968_ The unstable cave ceiling collapses. 02970_ Lgt. Assault Rifle destroyed. 02972_ The unstable cave ceiling collapses. 02973_ Chain reaction triggered in Lgt. Deuterium Engine. 02975_ Lgt. Ion Engine destroyed. 02975_ Lgt. Treads destroyed. 02977_ The unstable cave ceiling collapses. 02985_ D-53 Grenadier destroyed. 02986_ EM Pulse Gun destroyed. 02991_ The unstable cave ceiling collapses. Map ----- +----------------------------------------------------+ | ??????????????????????????????????????????? | | ??????????????????????????????????????????? | | ??????????????????????????????????????????? | | ??????????????????????????????????????????? | | ??????????????????????#?#########?????????? | | ???????????########### # #?????????? | | ???????????# # # #?????????? | | ???????????# #?????????? | | ???????????# # # #?????????? | | ???????????# # ### #?????????? | | ???????????#########?# #########?????????? | | ??????????????######?# # #??????????? | | ??????????????# # # = #??????????? | | ??????????????# # # !%* #??????????? | | ??????????????# #??????????? | | ??????????????# # # #??????????? | | ??????????????# # # ####??????????? | | ??????????????# ###??????????? | | ?????????????#### a #??????????? | | ?????????????# a # #??????????? | | ?????????????# # #??????????? | | ?????????????# #??????????? | | ????????????## #??????????? | | ???????????# ###??????????? | | ############ ## # #######????????? | | a@ #????????? | | # #????????? | | a #????????? | | #????????? | | = #????????? | | =% #????????? | | ! # #????????? | | # #????????? | | #?# # #????????? | | " #?## # ####????????? | | #### "%" #??## # #####???????????? | | # " #???### ###?####??????????? | | # #?????# #??? #??????????? | | # #?????# #?? #??????????? | | #?????# #? #??????????? | | % ####### # #??????????? | | ####### # # # #??????????? | | < #?????## ## #??????????? | | #??????# ## # ##### ##??????????? | | #####??????# ######## #??????????? | | ???????????? #??????# #??????????? | | ????????????? #??????###########??????????? | | ??????????????#???????????????????????????? | | ??????????????????????????????????????????? | | ??????????????????????????????????????????? | +----------------------------------------------------+ Best States ------------- Heat Dissipation 25 Energy Generation 10 Energy Capacity 125 Matter Stores 186 Matter Capacity 300 Sight Range 16 Terrain Scan Density 10 Evasion (%) 50 Recoil Reduction 2 Item Schematics ----------------- None Robot Schematics ------------------ None Fabricated ------------ Nothing Alien Tech Used ----------------- None Achievements -------------- Curiosity Killed The Cat Challenges ------------ None Game ------ Seed HeavyPropulsionJammer Manual? 0 Play Time 00:19:53 Cumulative 21.5 hours Start 2024.02.21 @ 21:22:05 End 2024.02.24 @ 17:24:22 Sessions 2 Manual Loads 0 Difficulty Rogue Special Mode None Game No. 33 Rogue 33 Adventurer 0 Explorer 0 Win Type - Total 0 Types 0/0/0/0/0/0/0/0/0 Lore% 6 Gallery% 23 Achievement% 3 Wizard Run 0 Options --------- ASCII 0 Keyboard 0 Movement Numpad Keybinds 0 Fullscreen 2 Font 32/SmallcapsGlow Map View 76x50 Tactical HUD 1 Map Filters NONE Filters NONE Steam 1 RUN: 09b2b4de-2fd3-4e74-9db8-c76f7383865c